[Event "Titled Tuesday Blitz June 22 2021"]
[White "Materia, Marco"]
[Black "Cardoso Cardoso, Jose Gabriel"]
[WhiteFideId "45150451"]
[BlackFideId "4430492"]
[WhiteElo "2659"]
[BlackElo "2343"]
[Result "0-1"]
[Round "08"]
[TimeControl "180+1"]
[Date "2021.06.22"]
[WhiteClock "0:00:29"]
[BlackClock "0:00:39"]

1. d4 {[%clk 0:03:00]}  Nf6 {[%clk 0:02:59]} 2. c4 {[%clk 0:03:01]}  g6 {[%clk 0:02:57]} 3. Nc3 {[%clk 0:03:00]}  Bg7 {[%clk 0:02:57]} 4. e4 {[%clk 0:03:00]}  d6 {[%clk 0:02:57]} 5. Nf3 {[%clk 0:03:01]}  O-O {[%clk 0:02:56]} 6. Be2 {[%clk 0:03:01]}  e5 {[%clk 0:02:56]} 7. Bg5 {[%clk 0:03:02]}  Qe8 {[%clk 0:02:54]} 8. d5 {[%clk 0:02:54]}  a5 {[%clk 0:02:52]} 9. O-O {[%clk 0:02:53]}  Na6 {[%clk 0:02:50]} 10. Nd2 {[%clk 0:02:52]}  Nc5 {[%clk 0:02:50]} 11. b3 {[%clk 0:02:47]}  h6 {[%clk 0:02:47]} 12. Bh4 {[%clk 0:02:47]}  Nh7 {[%clk 0:02:46]} 13. a3 {[%clk 0:02:44]}  Bf6 {[%clk 0:02:44]} 14. Bxf6 {[%clk 0:02:41]}  Nxf6 {[%clk 0:02:43]} 15. b4 {[%clk 0:02:41]}  Na6 {[%clk 0:02:42]} 16. Nb3 {[%clk 0:02:29]}  axb4 {[%clk 0:02:36]} 17. axb4 {[%clk 0:02:28]}  Bd7 {[%clk 0:02:37]} 18. b5 {[%clk 0:02:23]}  Nb4 {[%clk 0:02:35]} 19. Qd2 {[%clk 0:02:19]}  Qe7 {[%clk 0:01:32]} 20. Na4 {[%clk 0:01:59]}  Nxe4 {[%clk 0:01:08]} 21. Qxb4 {[%clk 0:01:59]}  Qg5 {[%clk 0:01:09]} 22. Bf3 {[%clk 0:01:52]}  Nf6 {[%clk 0:01:03]} 23. Qd2 {[%clk 0:01:50]}  Qh4 {[%clk 0:01:01]} 24. Nb2 {[%clk 0:01:43]}  g5 {[%clk 0:00:57]} 25. g3 {[%clk 0:01:42]}  Qh3 {[%clk 0:00:55]} 26. Bg2 {[%clk 0:01:40]}  Qg4 {[%clk 0:00:54]} 27. Rxa8 {[%clk 0:01:35]}  Rxa8 {[%clk 0:00:53]} 28. Ra1 {[%clk 0:01:35]}  Rxa1+ {[%clk 0:00:51]} 29. Nxa1 {[%clk 0:01:34]}  Bf5 {[%clk 0:00:52]} 30. f3 {[%clk 0:01:28]}  Qh5 {[%clk 0:00:49]} 31. g4 {[%clk 0:01:28]}  Bxg4 {[%clk 0:00:49]} 32. fxg4 {[%clk 0:01:27]}  Qxg4 {[%clk 0:00:48]} 33. Nb3 {[%clk 0:01:24]}  Nh5 {[%clk 0:00:47]} 34. Nc1 {[%clk 0:01:14]}  Nf4 {[%clk 0:00:47]} 35. Nbd3 {[%clk 0:01:12]}  Ng6 {[%clk 0:00:46]} 36. c5 {[%clk 0:00:57]}  Nh4 {[%clk 0:00:44]} 37. cxd6 {[%clk 0:00:56]}  Nf3+ {[%clk 0:00:44]} 38. Kh1 {[%clk 0:00:52]}  Nxd2 {[%clk 0:00:45]} 39. h3 {[%clk 0:00:47]}  Qd1+ {[%clk 0:00:43]} 40. Kh2 {[%clk 0:00:46]}  cxd6 {[%clk 0:00:43]} 41. Na2 {[%clk 0:00:40]}  Nf1+ {[%clk 0:00:40]} 42. Bxf1 {[%clk 0:00:38]}  Qxf1 {[%clk 0:00:40]} 43. Ndb4 {[%clk 0:00:30]}  Qf2+ {[%clk 0:00:39]} 44. Kh1 {[%clk 0:00:29]}  e4 {[%clk 0:00:40]} 45. Nc3 {[%clk 0:00:29]}  Qe1+ {[%clk 0:00:39]} 0-1


[Site "https://www.chess.com"]

[Event "Titled Tuesday Blitz June 22 2021"]
[White "Maximov, Dmitry"]
[Black "Maghsoodloo, Parham"]
[WhiteFideId "14105659"]
[BlackFideId "12539929"]
[WhiteElo "2494"]
[BlackElo "2601"]
[Result "1-0"]
[Round "08"]
[TimeControl "180+1"]
[Date "2021.06.22"]
[WhiteClock "0:00:12"]
[BlackClock "0:00:04"]

1. e4 {[%clk 0:03:00]}  e5 {[%clk 0:02:59]} 2. Nf3 {[%clk 0:03:01]}  Nc6 {[%clk 0:02:59]} 3. Bb5 {[%clk 0:03:01]}  a6 {[%clk 0:02:58]} 4. Ba4 {[%clk 0:03:02]}  Nf6 {[%clk 0:02:59]} 5. O-O {[%clk 0:03:02]}  b5 {[%clk 0:02:59]} 6. Bb3 {[%clk 0:03:02]}  Bc5 {[%clk 0:03:00]} 7. d3 {[%clk 0:03:01]}  d6 {[%clk 0:02:57]} 8. Be3 {[%clk 0:03:00]}  O-O {[%clk 0:02:56]} 9. h3 {[%clk 0:02:58]}  h6 {[%clk 0:02:52]} 10. Nbd2 {[%clk 0:02:56]}  Re8 {[%clk 0:02:52]} 11. Qe2 {[%clk 0:02:56]}  Be6 {[%clk 0:02:52]} 12. Rae1 {[%clk 0:02:51]}  Bxe3 {[%clk 0:02:51]} 13. fxe3 {[%clk 0:02:50]}  Na5 {[%clk 0:02:43]} 14. Bxe6 {[%clk 0:02:50]}  fxe6 {[%clk 0:02:41]} 15. Qf2 {[%clk 0:02:45]}  c5 {[%clk 0:02:41]} 16. Nh4 {[%clk 0:02:43]}  Ra7 {[%clk 0:02:38]} 17. Qg3 {[%clk 0:02:38]}  Rf7 {[%clk 0:02:35]} 18. Qg6 {[%clk 0:02:32]}  Nc6 {[%clk 0:02:35]} 19. Rf3 {[%clk 0:02:20]}  Ref8 {[%clk 0:02:33]} 20. Ref1 {[%clk 0:02:18]}  Ne7 {[%clk 0:02:33]} 21. Qg3 {[%clk 0:02:17]}  g5 {[%clk 0:02:33]} 22. R3f2 {[%clk 0:02:08]}  Qe8 {[%clk 0:02:25]} 23. Nhf3 {[%clk 0:01:56]}  Ng6 {[%clk 0:02:24]} 24. h4 {[%clk 0:01:45]}  g4 {[%clk 0:02:24]} 25. h5 {[%clk 0:01:40]}  Ne7 {[%clk 0:02:00]} 26. Nh2 {[%clk 0:01:36]}  Nxh5 {[%clk 0:02:00]} 27. Qxg4+ {[%clk 0:01:36]}  Ng7 {[%clk 0:02:00]} 28. Ndf3 {[%clk 0:01:31]}  Rf6 {[%clk 0:01:59]} 29. Nh4 {[%clk 0:01:27]}  Rxf2 {[%clk 0:01:53]} 30. Rxf2 {[%clk 0:01:27]}  Rxf2 {[%clk 0:01:53]} 31. Kxf2 {[%clk 0:01:28]}  Qf7+ {[%clk 0:01:54]} 32. N2f3 {[%clk 0:01:20]}  Kh7 {[%clk 0:01:51]} 33. Qh3 {[%clk 0:01:19]}  Qf6 {[%clk 0:01:50]} 34. g4 {[%clk 0:01:16]}  Kg8 {[%clk 0:01:49]} 35. Qg3 {[%clk 0:01:15]}  Nc6 {[%clk 0:01:46]} 36. Ke2 {[%clk 0:01:15]}  c4 {[%clk 0:01:45]} 37. a3 {[%clk 0:01:13]}  a5 {[%clk 0:01:40]} 38. g5 {[%clk 0:01:08]}  hxg5 {[%clk 0:01:38]} 39. Nxg5 {[%clk 0:01:08]}  Ne7 {[%clk 0:01:23]} 40. Nhf3 {[%clk 0:01:07]}  Qh6 {[%clk 0:01:18]} 41. Qg4 {[%clk 0:01:02]}  cxd3+ {[%clk 0:01:04]} 42. cxd3 {[%clk 0:01:02]}  b4 {[%clk 0:01:04]} 43. axb4 {[%clk 0:01:02]}  axb4 {[%clk 0:01:05]} 44. d4 {[%clk 0:01:01]}  exd4 {[%clk 0:00:53]} 45. exd4 {[%clk 0:01:01]}  Qf6 {[%clk 0:00:40]} 46. Qh4 {[%clk 0:00:54]}  Qg6 {[%clk 0:00:35]} 47. Qh2 {[%clk 0:00:54]}  Ne8 {[%clk 0:00:30]} 48. Qf4 {[%clk 0:00:52]}  Nc6 {[%clk 0:00:25]} 49. Qg4 {[%clk 0:00:39]}  Ng7 {[%clk 0:00:18]} 50. d5 {[%clk 0:00:32]}  exd5 {[%clk 0:00:15]} 51. exd5 {[%clk 0:00:29]}  Ne7 {[%clk 0:00:15]} 52. Qxb4 {[%clk 0:00:24]}  Qc2+ {[%clk 0:00:12]} 53. Kf1 {[%clk 0:00:24]}  Ngf5 {[%clk 0:00:11]} 54. Qb8+ {[%clk 0:00:20]}  Kg7 {[%clk 0:00:11]} 55. Ne6+ {[%clk 0:00:20]}  Kf7 {[%clk 0:00:08]} 56. Qf8+ {[%clk 0:00:20]}  Kg6 {[%clk 0:00:07]} 57. Qe8+ {[%clk 0:00:20]}  Kf6 {[%clk 0:00:07]} 58. Qh8+ {[%clk 0:00:20]}  Kg6 {[%clk 0:00:07]} 59. Nh4+ {[%clk 0:00:17]}  Nxh4 {[%clk 0:00:07]} 60. Qg7+ {[%clk 0:00:17]}  Kf5 {[%clk 0:00:06]} 61. Nd4+ {[%clk 0:00:18]}  Ke4 {[%clk 0:00:05]} 62. Nxc2 {[%clk 0:00:18]}  Nef5 {[%clk 0:00:05]} 63. Qg4+ {[%clk 0:00:18]}  Kxd5 {[%clk 0:00:05]} 64. Ke1 {[%clk 0:00:17]}  Ke5 {[%clk 0:00:06]} 65. Nb4 {[%clk 0:00:17]}  d5 {[%clk 0:00:05]} 66. Nd3+ {[%clk 0:00:17]}  Kf6 {[%clk 0:00:05]} 67. Nf4 {[%clk 0:00:16]}  Ke5 {[%clk 0:00:05]} 68. Ng6+ {[%clk 0:00:16]}  Nxg6 {[%clk 0:00:05]} 69. Qxg6 {[%clk 0:00:16]}  Nd4 {[%clk 0:00:06]} 70. Qg7+ {[%clk 0:00:16]}  Ke4 {[%clk 0:00:07]} 71. b4 {[%clk 0:00:15]}  Ne6 {[%clk 0:00:05]} 72. Qg4+ {[%clk 0:00:14]}  Ke5 {[%clk 0:00:05]} 73. Qg3+ {[%clk 0:00:14]}  Kd4 {[%clk 0:00:05]} 74. Kd2 {[%clk 0:00:14]}  Kc4 {[%clk 0:00:03]} 75. Qc3+ {[%clk 0:00:13]}  Kb5 {[%clk 0:00:04]} 76. Kc2 {[%clk 0:00:12]}  Kb6 {[%clk 0:00:02]} 77. Kb3 {[%clk 0:00:12]}  Kb5 {[%clk 0:00:01]} 78. Qd3+ {[%clk 0:00:12]}  Kc6 {[%clk 0:00:01]} 79. Qa6+ {[%clk 0:00:11]}  Kd7 {[%clk 0:00:01]} 80. Qb7+ {[%clk 0:00:11]}  Kd6 {[%clk 0:00:01]} 81. Qb6+ {[%clk 0:00:12]}  Kd7 {[%clk 0:00:02]} 82. b5 {[%clk 0:00:12]}  d4 {[%clk 0:00:02]} 83. Qc6+ {[%clk 0:00:12]}  Ke7 {[%clk 0:00:03]} 84. Kc4 {[%clk 0:00:12]}  d3 {[%clk 0:00:04]} 85. Kxd3 {[%clk 0:00:12]} 1-0


[Site "https://www.chess.com"]

[Event "Titled Tuesday Blitz June 22 2021"]
[White "Muradli, Mahammad"]
[Black "Howell, David W L"]
[WhiteFideId "13409301"]
[BlackFideId "410608"]
[WhiteElo "2482"]
[BlackElo "2643"]
[Result "1/2-1/2"]
[Round "08"]
[TimeControl "180+1"]
[Date "2021.06.22"]
[WhiteClock "0:00:06"]
[BlackClock "0:00:16"]

1. Nf3 {[%clk 0:02:57]}  c5 {[%clk 0:02:53]} 2. c4 {[%clk 0:02:57]}  Nc6 {[%clk 0:02:52]} 3. Nc3 {[%clk 0:02:57]}  g6 {[%clk 0:02:52]} 4. e3 {[%clk 0:02:54]}  Nf6 {[%clk 0:02:51]} 5. d4 {[%clk 0:02:55]}  cxd4 {[%clk 0:02:52]} 6. exd4 {[%clk 0:02:56]}  d5 {[%clk 0:02:53]} 7. cxd5 {[%clk 0:02:57]}  Nxd5 {[%clk 0:02:52]} 8. Bc4 {[%clk 0:02:56]}  Nb6 {[%clk 0:02:38]} 9. Bb5 {[%clk 0:02:54]}  Bg7 {[%clk 0:02:32]} 10. Bxc6+ {[%clk 0:02:13]}  bxc6 {[%clk 0:02:33]} 11. O-O {[%clk 0:02:12]}  O-O {[%clk 0:02:32]} 12. h3 {[%clk 0:02:12]}  a5 {[%clk 0:02:24]} 13. Re1 {[%clk 0:02:06]}  a4 {[%clk 0:02:24]} 14. Bg5 {[%clk 0:01:59]}  Re8 {[%clk 0:02:24]} 15. Rc1 {[%clk 0:01:57]}  Ra5 {[%clk 0:02:13]} 16. Ne4 {[%clk 0:01:52]}  Rd5 {[%clk 0:01:53]} 17. Qc2 {[%clk 0:01:41]}  Bd7 {[%clk 0:01:43]} 18. Rcd1 {[%clk 0:01:27]}  Bf5 {[%clk 0:01:32]} 19. Qxc6 {[%clk 0:01:23]}  Bxe4 {[%clk 0:01:32]} 20. Rxe4 {[%clk 0:01:24]}  Rd6 {[%clk 0:01:25]} 21. Qc2 {[%clk 0:01:12]}  Qd7 {[%clk 0:01:21]} 22. Ree1 {[%clk 0:01:07]}  e6 {[%clk 0:01:16]} 23. Ne5 {[%clk 0:01:04]}  Qb7 {[%clk 0:01:13]} 24. Ng4 {[%clk 0:01:01]}  Rc8 {[%clk 0:01:06]} 25. Qd2 {[%clk 0:00:46]}  Nd5 {[%clk 0:01:06]} 26. Rc1 {[%clk 0:00:45]}  Rdc6 {[%clk 0:01:02]} 27. Bh6 {[%clk 0:00:38]}  Bh8 {[%clk 0:00:52]} 28. Ne5 {[%clk 0:00:31]}  Rxc1 {[%clk 0:00:49]} 29. Rxc1 {[%clk 0:00:31]}  Rxc1+ {[%clk 0:00:50]} 30. Qxc1 {[%clk 0:00:32]}  Bg7 {[%clk 0:00:50]} 31. Bxg7 {[%clk 0:00:30]}  Kxg7 {[%clk 0:00:51]} 32. g3 {[%clk 0:00:18]}  Qb4 {[%clk 0:00:48]} 33. Qc5 {[%clk 0:00:09]}  Qxb2 {[%clk 0:00:39]} 34. Nd7 {[%clk 0:00:09]}  Qb4 {[%clk 0:00:34]} 35. Qc8 {[%clk 0:00:06]}  h5 {[%clk 0:00:28]} 36. Qe8 {[%clk 0:00:05]}  a3 {[%clk 0:00:20]} 37. Ne5 {[%clk 0:00:05]}  Qe1+ {[%clk 0:00:17]} 38. Kg2 {[%clk 0:00:05]}  Qe4+ {[%clk 0:00:16]} 39. Kh2 {[%clk 0:00:06]}  Qf5 {[%clk 0:00:15]} 40. Kg2 {[%clk 0:00:06]}  Qe4+ {[%clk 0:00:16]} 41. Kh2 {[%clk 0:00:06]}  Qf5 {[%clk 0:00:16]} 42. Kg2 {[%clk 0:00:06]}  Qe4+ {[%clk 0:00:16]} 1/2-1/2


[Site "https://www.chess.com"]

[Event "Titled Tuesday Blitz June 22 2021"]
[White "Smirnov, Pavel"]
[Black "Djordjevic, Vuk"]
[WhiteFideId "4123425"]
[BlackFideId "902098"]
[WhiteElo "2584"]
[BlackElo "2463"]
[Result "1-0"]
[Round "08"]
[TimeControl "180+1"]
[Date "2021.06.22"]
[WhiteClock "0:01:35"]
[BlackClock "0:00:02"]

1. e4 {[%clk 0:03:00]}  e6 {[%clk 0:03:00]} 2. d4 {[%clk 0:03:00]}  d5 {[%clk 0:03:00]} 3. e5 {[%clk 0:03:00]}  c5 {[%clk 0:02:59]} 4. c3 {[%clk 0:03:01]}  Nc6 {[%clk 0:03:00]} 5. Nf3 {[%clk 0:03:02]}  Qb6 {[%clk 0:03:00]} 6. Be2 {[%clk 0:03:03]}  cxd4 {[%clk 0:02:58]} 7. cxd4 {[%clk 0:03:04]}  Bb4+ {[%clk 0:02:57]} 8. Nc3 {[%clk 0:03:02]}  Qa5 {[%clk 0:02:53]} 9. Bd2 {[%clk 0:02:49]}  Nge7 {[%clk 0:02:51]} 10. a3 {[%clk 0:02:46]}  Bxc3 {[%clk 0:02:51]} 11. Bxc3 {[%clk 0:02:47]}  Qd8 {[%clk 0:02:45]} 12. O-O {[%clk 0:02:48]}  O-O {[%clk 0:02:44]} 13. Bd3 {[%clk 0:02:49]}  h6 {[%clk 0:02:44]} 14. Bc2 {[%clk 0:02:47]}  a5 {[%clk 0:02:19]} 15. Qd3 {[%clk 0:02:48]}  g6 {[%clk 0:02:19]} 16. Qe3 {[%clk 0:02:39]}  Kg7 {[%clk 0:02:18]} 17. Bd2 {[%clk 0:02:39]}  Ng8 {[%clk 0:02:08]} 18. h4 {[%clk 0:02:36]}  h5 {[%clk 0:01:59]} 19. Qf4 {[%clk 0:02:30]}  Bd7 {[%clk 0:01:56]} 20. Qg3 {[%clk 0:02:27]}  Nce7 {[%clk 0:01:47]} 21. Bg5 {[%clk 0:02:24]}  Kh7 {[%clk 0:01:04]} 22. Bf6 {[%clk 0:02:17]}  Nxf6 {[%clk 0:01:00]} 23. exf6 {[%clk 0:02:17]}  Ng8 {[%clk 0:00:58]} 24. Ne5 {[%clk 0:02:13]}  Kh8 {[%clk 0:00:27]} 25. Bxg6 {[%clk 0:02:10]}  fxg6 {[%clk 0:00:25]} 26. Nxg6+ {[%clk 0:02:11]}  Kh7 {[%clk 0:00:25]} 27. Nxf8+ {[%clk 0:02:10]}  Qxf8 {[%clk 0:00:24]} 28. Rac1 {[%clk 0:02:11]}  Bc6 {[%clk 0:00:16]} 29. b4 {[%clk 0:02:08]}  axb4 {[%clk 0:00:08]} 30. axb4 {[%clk 0:02:09]}  Nxf6 {[%clk 0:00:09]} 31. b5 {[%clk 0:02:03]}  Bxb5 {[%clk 0:00:08]} 32. Rc7+ {[%clk 0:02:04]}  Bd7 {[%clk 0:00:06]} 33. Re1 {[%clk 0:02:05]}  Qg7 {[%clk 0:00:05]} 34. Qxg7+ {[%clk 0:01:58]}  Kxg7 {[%clk 0:00:04]} 35. Rxe6 {[%clk 0:01:59]}  Rd8 {[%clk 0:00:04]} 36. Rxb7 {[%clk 0:01:58]}  Kg6 {[%clk 0:00:03]} 37. Rd6 {[%clk 0:01:56]}  Kf7 {[%clk 0:00:04]} 38. Rbb6 {[%clk 0:01:50]}  Ne8 {[%clk 0:00:03]} 39. Rxd5 {[%clk 0:01:50]}  Ng7 {[%clk 0:00:04]} 40. f4 {[%clk 0:01:48]}  Ke7 {[%clk 0:00:04]} 41. Re5+ {[%clk 0:01:46]}  Kf7 {[%clk 0:00:04]} 42. Rd6 {[%clk 0:01:47]}  Ne8 {[%clk 0:00:03]} 43. Rb6 {[%clk 0:01:44]}  Nf6 {[%clk 0:00:03]} 44. f5 {[%clk 0:01:44]}  Rc8 {[%clk 0:00:02]} 45. Rb7 {[%clk 0:01:44]}  Rc1+ {[%clk 0:00:03]} 46. Kf2 {[%clk 0:01:42]}  Ng4+ {[%clk 0:00:03]} 47. Kg3 {[%clk 0:01:42]}  Rc3+ {[%clk 0:00:03]} 48. Kf4 {[%clk 0:01:42]}  Nf6 {[%clk 0:00:03]} 49. Re6 {[%clk 0:01:39]}  Rd3 {[%clk 0:00:01]} 50. Rxf6+ {[%clk 0:01:35]}  Kxf6 {[%clk 0:00:02]} 51. Rxd7 {[%clk 0:01:35]}  Rf3+ {[%clk 0:00:02]} 52. Kxf3 {[%clk 0:01:35]} 1-0


[Site "https://www.chess.com"]

[Event "Titled Tuesday Blitz June 22 2021"]
[White "SpeedofLight0"]
[Black "Tristan, Leonardo"]
[BlackFideId "113816"]
[WhiteElo "2803"]
[BlackElo "2404"]
[Result "1-0"]
[Round "08"]
[TimeControl "180+1"]
[Date "2021.06.22"]
[WhiteClock "0:00:18"]
[BlackClock "0:00:01"]

1. Nf3 {[%clk 0:03:00]}  d5 {[%clk 0:02:45]} 2. g3 {[%clk 0:03:00]}  Nf6 {[%clk 0:02:44]} 3. Bg2 {[%clk 0:03:00]}  Bf5 {[%clk 0:02:42]} 4. O-O {[%clk 0:03:00]}  e6 {[%clk 0:02:42]} 5. d3 {[%clk 0:03:00]}  Be7 {[%clk 0:02:42]} 6. b3 {[%clk 0:02:59]}  O-O {[%clk 0:02:42]} 7. Bb2 {[%clk 0:03:00]}  h6 {[%clk 0:02:42]} 8. Nbd2 {[%clk 0:03:00]}  Bh7 {[%clk 0:02:43]} 9. c4 {[%clk 0:03:00]}  c6 {[%clk 0:02:43]} 10. a3 {[%clk 0:02:59]}  a5 {[%clk 0:02:43]} 11. Qc2 {[%clk 0:02:58]}  Nbd7 {[%clk 0:02:43]} 12. e4 {[%clk 0:02:58]}  dxe4 {[%clk 0:02:39]} 13. dxe4 {[%clk 0:02:59]}  Qb6 {[%clk 0:02:39]} 14. Bd4 {[%clk 0:02:44]}  Bc5 {[%clk 0:02:33]} 15. Qb2 {[%clk 0:02:38]}  Bxd4 {[%clk 0:02:31]} 16. Nxd4 {[%clk 0:02:38]}  Rfd8 {[%clk 0:02:30]} 17. b4 {[%clk 0:02:21]}  axb4 {[%clk 0:02:26]} 18. axb4 {[%clk 0:02:22]}  Rxa1 {[%clk 0:02:24]} 19. Rxa1 {[%clk 0:02:23]}  Nc5 {[%clk 0:01:55]} 20. e5 {[%clk 0:01:57]}  Ng4 {[%clk 0:01:35]} 21. Qc3 {[%clk 0:01:48]}  Nd3 {[%clk 0:01:20]} 22. c5 {[%clk 0:01:48]}  Qxb4 {[%clk 0:01:11]} 23. Qxb4 {[%clk 0:01:47]}  Nxb4 {[%clk 0:01:12]} 24. Nc4 {[%clk 0:01:48]}  Nd3 {[%clk 0:00:43]} 25. Nb3 {[%clk 0:01:36]}  Ngxe5 {[%clk 0:00:36]} 26. Nd6 {[%clk 0:01:37]}  Bg6 {[%clk 0:00:29]} 27. Ra7 {[%clk 0:01:24]}  Nxc5 {[%clk 0:00:27]} 28. Nxc5 {[%clk 0:01:21]}  Rxd6 {[%clk 0:00:27]} 29. Rxb7 {[%clk 0:01:17]}  Rd1+ {[%clk 0:00:27]} 30. Bf1 {[%clk 0:01:17]}  Rc1 {[%clk 0:00:24]} 31. Nb3 {[%clk 0:01:16]}  Rb1 {[%clk 0:00:24]} 32. f4 {[%clk 0:01:09]}  Nf3+ {[%clk 0:00:12]} 33. Kf2 {[%clk 0:01:07]}  Nd2 {[%clk 0:00:13]} 34. Nc5 {[%clk 0:00:56]}  Rxb7 {[%clk 0:00:14]} 35. Nxb7 {[%clk 0:00:57]}  Nxf1 {[%clk 0:00:10]} 36. Kxf1 {[%clk 0:00:58]}  Kf8 {[%clk 0:00:11]} 37. Ke2 {[%clk 0:00:52]}  Ke7 {[%clk 0:00:11]} 38. Ke3 {[%clk 0:00:52]}  Kd7 {[%clk 0:00:11]} 39. Kd4 {[%clk 0:00:53]}  Kc7 {[%clk 0:00:11]} 40. Nc5 {[%clk 0:00:52]}  Kd6 {[%clk 0:00:10]} 41. Nb7+ {[%clk 0:00:53]}  Ke7 {[%clk 0:00:09]} 42. Na5 {[%clk 0:00:50]}  Kd7 {[%clk 0:00:09]} 43. Nc4 {[%clk 0:00:50]}  f6 {[%clk 0:00:08]} 44. Kc5 {[%clk 0:00:50]}  Be8 {[%clk 0:00:07]} 45. Nd6 {[%clk 0:00:49]}  Ke7 {[%clk 0:00:07]} 46. Nc8+ {[%clk 0:00:48]}  Kd8 {[%clk 0:00:07]} 47. Nd6 {[%clk 0:00:48]}  Bd7 {[%clk 0:00:08]} 48. h4 {[%clk 0:00:47]}  Ke7 {[%clk 0:00:08]} 49. Nc4 {[%clk 0:00:46]}  g6 {[%clk 0:00:06]} 50. Kd4 {[%clk 0:00:44]}  Be8 {[%clk 0:00:05]} 51. Kc5 {[%clk 0:00:45]}  Bd7 {[%clk 0:00:03]} 52. Kd4 {[%clk 0:00:43]}  g5 {[%clk 0:00:03]} 53. hxg5 {[%clk 0:00:43]}  hxg5 {[%clk 0:00:04]} 54. fxg5 {[%clk 0:00:41]}  fxg5 {[%clk 0:00:05]} 55. Ke5 {[%clk 0:00:41]}  c5 {[%clk 0:00:05]} 56. Nd6 {[%clk 0:00:41]}  Bc6 {[%clk 0:00:03]} 57. Nc8+ {[%clk 0:00:41]}  Kd7 {[%clk 0:00:03]} 58. Nb6+ {[%clk 0:00:41]}  Kc7 {[%clk 0:00:03]} 59. Nc4 {[%clk 0:00:42]}  Bd5 {[%clk 0:00:04]} 60. Ne3 {[%clk 0:00:41]}  c4 {[%clk 0:00:04]} 61. Kf6 {[%clk 0:00:33]}  g4 {[%clk 0:00:02]} 62. Nxg4 {[%clk 0:00:30]}  c3 {[%clk 0:00:02]} 63. Ne3 {[%clk 0:00:30]}  Kd6 {[%clk 0:00:03]} 64. Nc2 {[%clk 0:00:18]}  Be4 {[%clk 0:00:02]} 65. Nd4 {[%clk 0:00:18]}  c2 {[%clk 0:00:01]} 66. Ne2 {[%clk 0:00:18]} 1-0


[Site "https://www.chess.com"]